bitfinex/quotes_ETHUSD_20260129
["timestamp","ask_amount","ask_price","bid_price","bid_amount"]
[1769681878650,0.002,2947.3,2946.7,0.001]
[1769681878847,11.08052497,2947.3,2946.7,0.001]
[1769681880449,0.002,2947.3,2946.7,0.001]
[1769681886182,11.08052497,2947.3,2946.7,0.001]
[1769681889894,11.92876306,2947.3,2946.7,0.001]
[1769681890452,11.11247521,2947.2,2946.7,0.001]
[1769681890691,11.07852497,2947.2,2946.7,0.001]
[1769681891182,11.92678855,2947.2,2946.7,0.001]
[1769681893382,11.11247521,2947.1,2946.7,0.001]
[1769681893560,11.07852497,2947.1,2946.7,0.001]
[1769681894194,11.07852497,2947.1,2945.9,14.71654178]
[1769681894496,11.07852497,2947.1,2946.1,0.84855854]
[1769681895265,11.92687408,2946.9,2946.0,12.16860918]
[1769681895577,0.84829154,2947.1,2946.0,12.16860918]
[1769681895780,11.92681651,2947.1,2946.0,12.16860918]
[1769681895990,11.92681651,2947.1,2946.2,11.3200009]
[1769681896156,11.92681651,2947.1,2946.3,0.03394087]
[1769681896358,11.92681651,2947.1,2946.2,11.3200009]
[1769681897297,11.92681651,2947.1,2946.3,0.84852187]
[1769681899870,0.85025226,2947.3,2946.4,11.35394062]
[1769681900071,0.85025226,2947.3,2946.4,11.3200009]
[1769681900392,0.85025226,2947.3,2946.3,0.84852187]
[1769681900393,0.85025226,2947.3,2946.6,11.3200009]
[1769681901493,0.85025226,2947.3,2946.4,12.16846566]
[1769681901791,0.85025226,2947.3,2946.5,0.03393857]
[1769681902693,0.002,2947.3,2946.5,11.3200009]
[1769681904797,0.002,2947.3,2946.7,0.001]
[1769681904998,0.002,2947.1,2946.7,0.001]
[1769681905894,0.002,2947.1,2946.7,11.85399368]
[1769681907514,0.002,2947.1,2946.8,0.8483779]
[1769681909697,0.002,2947.1,2946.7,0.001]
[1769681909905,0.002,2947.1,2946.7,11.85399368]
[1769681910713,0.002,2947.1,2946.8,11.44281857]
[1769681910902,0.001,2947.1,2946.8,11.40888346]
[1769681911102,0.001,2947.1,2946.9,11.44281742]
[1769681911298,0.001,2947.1,2946.9,11.40888346]
[1769681911685,0.001,2947.1,2947.0,0.84832032]
[1769681912820,0.001,2947.1,2946.9,0.84832813]
[1769681913036,2.05e-06,2947.1,2946.8,0.84835643]
[1769681914224,2.05e-06,2947.1,2946.7,0.001]
[1769681916843,0.002,2947.5,2946.7,0.001]
[1769681916844,0.002,2947.5,2946.9,11.40888346]
[1769681917004,0.002,2947.5,2947.0,11.44281627]
[1769681917205,0.002,2947.5,2947.0,11.40888346]
[1769681917402,0.002,2947.5,2947.1,0.711]
[1769681917652,11.5587878,2948.0,2947.2,0.03393051]
[1769681917955,11.55678985,2948.0,2947.2,0.03393051]
[1769681918247,11.55678985,2948.0,2947.2,0.84826275]
[1769681918248,11.39096197,2948.0,2947.2,0.84826275]
[1769681923890,12.23899548,2948.0,2947.1,0.84827092]
[1769681924093,11.72261773,2947.8,2947.1,0.84827092]
[1769681924386,11.72261773,2947.6,2947.1,0.84827092]
[1769681926076,11.72261773,2947.6,2947.0,0.84832032]
[1769681927252,11.72261773,2947.8,2947.0,0.84832032]
[1769681934895,12.57070099,2947.9,2947.0,12.25720378]
[1769681937495,12.57070099,2947.9,2947.0,0.84832032]
[1769681937695,11.35283732,2947.7,2947.0,0.84832032]
[1769681942019,11.35283732,2947.7,2947.2,0.001]
[1769681942698,11.35283732,2947.5,2946.8,0.711]
[1769681943214,11.35283732,2947.5,2946.8,0.71199795]
[1769681943797,11.35283732,2947.5,2946.8,0.711]
[1769681944892,12.20104251,2947.4,2946.8,0.71199795]
[1769681946291,12.20104251,2947.4,2946.1,0.84855843]
[1769681946518,12.20104251,2947.4,2946.2,0.84853607]
[1769681947121,12.20104251,2947.4,2946.0,0.84860828]
[1769681947694,11.35283732,2947.2,2946.0,0.84860828]
[1769681949931,11.35283732,2947.0,2946.0,0.84860828]
[1769681952006,0.84834911,2946.9,2946.0,0.84860828]
[1769681952237,11.35283732,2946.8,2946.0,0.84860828]
[1769681954450,12.20121978,2946.8,2946.0,0.84860828]
[1769681955534,12.20121978,2946.8,2945.9,0.713]
[1769681956744,11.35283732,2946.6,2946.2,0.001]
[1769681956950,11.35283732,2946.6,2945.9,0.713]
[1769681956951,11.35283732,2946.6,2945.6,0.002]
[1769681958025,0.03395024,2946.5,2945.6,0.002]
[1769681958327,11.35283732,2946.4,2945.6,0.002]
[1769681958530,11.35283732,2946.2,2945.6,0.002]
[1769681960963,0.84857947,2946.1,2945.6,0.002]
[1769681961258,11.35283732,2946.0,2945.6,0.002]
[1769681963555,12.20146322,2946.0,2945.6,0.002]
[1769681965155,0.03395024,2945.9,2945.6,0.002]
[1769681965852,0.88258773,2945.9,2945.6,0.002]
[1769681966057,11.91683946,2945.9,2945.6,0.002]
[1769681966236,11.88288922,2945.9,2945.6,0.002]
[1769681966857,11.03425173,2945.9,2945.6,0.002]
[1769681968663,11.88289493,2945.9,2945.6,0.002]
[1769681970954,11.88289493,2945.9,2945.8,0.002]
[1769681971153,11.88289493,2945.9,2945.5,0.002]
[1769681971766,11.03425173,2945.9,2945.5,0.002]
[1769681972636,0.001,2946.0,2945.5,0.002]
[1769681972939,0.88356422,2946.0,2945.5,0.002]
[1769681973363,0.03495024,2946.0,2945.5,0.002]
[1769681974077,0.88356331,2946.0,2945.5,0.002]
[1769681974374,0.03495024,2946.0,2945.5,0.002]
[1769681974538,0.001,2946.0,2945.5,0.002]
[1769681976275,0.84961,2946.0,2945.5,0.002]
[1769681977681,0.001,2946.0,2945.5,0.002]
[1769681977987,0.001,2946.0,2945.5,10.92657866]
[1769681981845,0.001,2946.0,2945.5,11.77532987]
[1769681982983,0.001,2946.0,2945.5,10.92657866]
[1769681985774,0.001,2946.0,2945.7,0.002]
[1769681986094,0.001,2946.0,2945.7,10.92657866]
[1769681988493,0.001,2946.0,2945.7,0.002]
[1769681998409,0.001,2945.8,2945.7,0.002]
[1769681998903,0.001,2945.8,2945.7,11.07426411]
[1769682000184,0.001,2945.8,2945.7,0.002]
[1769682004329,11.24487039,2946.7,2945.7,11.07426411]
[1769682006434,12.09330587,2946.6,2945.8,0.84866589]
[1769682008498,11.24487039,2946.8,2945.9,11.07226411]
[1769682009932,0.001,2946.4,2945.9,11.07226411]
[1769682011831,0.001,2946.4,2946.0,0.84860828]
[1769682018220,0.001,2946.4,2945.9,3.39443636]
[1769682021542,0.001,2946.4,2945.9,3.39643636]
[1769682025947,0.001,2946.4,2945.9,14.92025582]
[1769682026613,0.001,2946.4,2946.0,11.52381946]
[1769682027233,3.39312525,2947.2,2945.9,3.39643636]
[1769682027234,12.58239462,2947.2,2946.2,11.52381946]
[1769682027853,12.58239462,2947.2,2946.3,0.84852187]
[1769682032343,11.35600264,2947.0,2946.2,0.84853273]
[1769682032549,11.35600264,2946.8,2946.2,0.84853273]
[1769682047986,11.35600264,2946.8,2946.4,0.001]
[1769682048175,0.002,2946.6,2946.4,0.001]
[1769682050102,11.35800264,2946.6,2946.0,0.84859544]
[1769682050268,11.35800264,2946.6,2945.9,0.002]
[1769682055602,12.20644131,2946.6,2945.9,0.002]
[1769682061615,12.20644131,2946.6,2946.1,0.001]
[1769682062133,0.002,2946.4,2946.1,0.001]
[1769682063824,11.57985445,2946.3,2945.4,0.84875933]
[1769682064129,11.57985445,2946.3,2945.2,14.48432713]
[1769682064329,11.57985445,2946.3,2945.4,0.8487764]
[1769682065203,0.002,2946.4,2945.4,0.8487764]
[1769682065204,11.57985445,2946.1,2945.4,0.8487764]
[1769682066442,11.57985445,2946.1,2945.3,14.48422049]
[1769682066805,12.42839668,2946.3,2945.4,11.08900461]
[1769682067016,11.57985445,2946.3,2945.4,11.08900461]
[1769682067439,11.57985445,2946.1,2945.1,0.002]
[1769682068619,11.57985445,2945.9,2945.1,0.002]
[1769682070626,11.57985445,2945.7,2945.1,0.002]
[1769682073344,11.57985445,2946.3,2945.1,0.002]
[1769682073548,11.57985445,2946.1,2945.1,0.002]
[1769682073745,11.57985445,2945.9,2945.1,0.002]
[1769682074054,11.57985445,2945.7,2945.1,0.002]
[1769682075048,11.57985445,2945.7,2945.3,0.002]
[1769682075352,0.84872351,2945.6,2945.3,0.002]
[1769682077442,12.42857796,2945.6,2945.3,0.002]
[1769682078954,0.84871437,2945.7,2945.3,0.002]
[1769682082467,11.57985445,2945.7,2945.3,0.002]
[1769682084870,12.42856614,2945.7,2945.3,0.002]
[1769682087169,0.001,2945.5,2945.3,0.002]
[1769682094746,0.001,2946.1,2945.3,11.23269951]
[1769682096380,0.001,2946.1,2945.4,0.84878115]
[1769682096985,0.001,2946.1,2945.4,12.07948066]
[1769682097560,0.001,2946.1,2945.5,0.03395009]
[1769682097752,0.001,2946.1,2945.6,11.23069951]
[1769682098153,0.001,2946.1,2945.4,12.07948066]
[1769682098971,0.001,2945.5,2945.4,12.07948066]
[1769682099285,0.001,2946.1,2945.4,12.07948066]
[1769682100660,0.001,2946.1,2945.5,11.2646496]
[1769682100989,0.001,2946.1,2945.6,12.07942302]
[1769682103560,0.002,2946.4,2945.8,11.23069951]
[1769682105094,0.002,2946.6,2945.8,11.23069951]
[1769682105598,0.002,2946.6,2946.1,11.23069951]
[1769682108223,0.002,2946.6,2946.2,0.84855067]
[1769682110491,0.002,2946.6,2946.0,0.84860828]
[1769682110821,0.001,2946.4,2946.0,12.07930779]
[1769682113517,0.002,2946.6,2946.2,11.23069951]
[1769682115223,0.002,2946.6,2946.0,0.84860828]
[1769682115525,0.002,2946.6,2946.0,11.86003902]
[1769682122413,0.002,2946.6,2946.1,11.01143074]
[1769682122944,0.002,2946.6,2946.2,0.84955067]
[1769682123114,0.002,2946.4,2946.2,0.84955067]
[1769682123313,0.002,2946.6,2946.2,11.89492343]
[1769682123528,0.002,2946.6,2946.2,11.86098141]
[1769682125261,0.002,2946.6,2946.2,0.001]
[1769682127542,0.002,2946.6,2946.2,0.84955067]
[1769682127922,0.99066421,2946.6,2946.2,11.86098141]
[1769682128112,10.98398468,2947.0,2946.2,11.86098141]
[1769682128319,0.74520772,2946.9,2946.2,11.86098141]
[1769682128513,0.66977886,2946.9,2946.2,11.86098141]
[1769682128914,10.98398468,2947.0,2946.2,11.86098141]
[1769682129245,11.14998468,2947.2,2946.2,11.86098141]
[1769682130147,11.14998468,2947.2,2946.4,11.01143074]
[1769682130547,0.002,2947.2,2946.6,11.01143074]
[1769682130732,0.001,2947.2,2946.7,11.756367]
[1769682130925,11.14798468,2947.5,2946.7,0.711]
[1769682131121,11.14798468,2947.4,2946.7,0.711]
[1769682131453,11.14998468,2947.3,2946.7,0.711]
[1769682132222,11.14998468,2947.3,2946.8,0.8483779]
[1769682134632,0.002,2947.3,2946.8,0.8483779]
[1769682135135,0.002,2947.1,2946.8,0.8483779]
[1769682135334,0.002,2947.3,2946.8,0.8483779]
[1769682147163,0.002,2947.3,2947.0,0.001]
[1769682147565,0.002,2947.1,2947.0,0.001]
[1769682147769,0.002,2947.3,2947.0,0.001]
[1769682157942,0.57487293,2947.2,2946.8,0.8483779]
[1769682158273,0.002,2947.3,2946.7,14.34876088]
[1769682158478,0.002,2947.3,2946.8,0.8483779]
[1769682158684,0.002,2947.3,2946.9,0.40764633]
[1769682158970,0.002,2947.3,2946.8,0.711]
[1769682159167,0.002,2947.3,2946.8,0.95136118]
[1769682159366,0.002,2947.3,2946.8,0.64865853]
[1769682159566,0.002,2947.3,2946.8,0.8483779]
[1769682159876,0.002,2947.1,2946.8,0.8483779]
[1769682160178,0.002,2947.3,2946.8,0.8483779]
[1769682164989,0.002,2947.3,2946.8,11.66750011]
[1769682170592,0.002,2947.3,2946.8,10.81912221]
[1769682170896,0.002,2947.3,2946.8,11.66750011]
[1769682171296,0.001,2947.1,2946.8,11.37492986]
[1769682171596,0.002,2947.3,2946.8,11.37492986]
[1769682171985,0.002,2947.3,2946.8,11.08352704]
[1769682172399,0.002,2947.3,2946.8,10.79235137]
[1769682172698,0.002,2947.3,2946.8,10.21091853]
[1769682173697,0.002,2947.3,2946.8,0.8483779]
[1769682174786,10.65292496,2947.6,2946.8,0.8483779]
[1769682174986,10.65292496,2947.6,2946.8,0.88231301]
[1769682176803,0.002,2947.8,2946.9,10.35406548]
[1769682177179,11.07136733,2947.8,2946.9,10.35406548]
[1769682178872,11.07136733,2947.8,2947.0,0.84832032]
[1769682182914,0.002,2947.6,2947.0,0.84832032]
[1769682184017,0.002,2947.6,2946.9,13.74734678]
[1769682184214,0.002,2947.6,2947.0,0.84832032]
[1769682184685,0.002,2947.6,2947.0,11.23631861]
[1769682184880,0.002,2947.6,2947.0,10.35406548]
[1769682185112,0.002,2947.6,2947.0,11.2023858]
[1769682185488,0.002,2947.6,2947.0,10.92566923]
[1769682185689,0.002,2947.6,2947.0,10.6488911]
[1769682189310,0.002,2947.6,2947.0,10.3719606]
[1769682194934,0.001,2947.4,2947.0,10.3719606]
[1769682195235,0.00034629,2947.6,2947.0,10.3719606]
[1769682199102,0.00034629,2947.6,2947.0,0.84832032]
[1769682199414,0.00034629,2947.6,2946.9,3.42721526]
[1769682199615,0.00034629,2947.6,2947.0,0.84832032]
[1769682200419,0.00034629,2947.6,2946.9,3.42721526]
[1769682200724,0.00034629,2947.6,2947.0,0.84832032]
[1769682200942,0.00034629,2947.6,2946.9,3.42721526]
[1769682201232,0.00034629,2947.6,2947.0,0.84832032]
[1769682202506,0.00034629,2947.6,2947.0,0.88225313]
[1769682207043,0.001,2947.4,2947.0,0.88225313]
[1769682207252,0.002,2947.8,2947.0,0.88225313]
[1769682207460,11.35358789,2947.8,2947.0,0.88225313]
[1769682215246,11.35358789,2947.8,2947.1,0.711]
[1769682217051,11.35358789,2947.8,2947.2,0.84826275]
[1769682218587,0.002,2947.6,2947.2,0.84826275]
[1769682224913,0.002,2947.8,2947.2,0.84826275]
[1769682227203,0.002,2947.8,2947.1,4.13798269]
[1769682227505,0.002,2947.8,2947.2,0.84826275]
[1769682228506,0.002,2947.8,2947.1,15.26028683]
[1769682228800,0.002,2947.8,2947.2,0.84826275]
[1769682230413,0.002,2947.8,2947.2,0.84926275]
[1769682230615,0.001,2947.6,2947.2,0.84926275]
[1769682230782,0.002,2947.8,2947.2,0.84926275]
[1769682236020,0.002,2947.8,2947.2,11.99275556]
[1769682236218,0.84988925,2948.5,2947.2,11.99275556]
[1769682236520,11.27134013,2948.4,2947.2,11.99275556]
[1769682236721,11.23738989,2948.4,2947.2,11.99275556]
[1769682239341,11.23738989,2948.4,2947.4,11.14349281]
[1769682239835,11.23738989,2948.4,2947.5,11.17741986]
[1769682240131,11.23738989,2948.4,2947.5,11.14349281]
[1769682241406,11.23738989,2948.4,2947.6,0.84814764]
[1769682242545,0.002,2948.2,2947.6,0.84814764]
[1769682242740,0.002,2948.2,2947.7,11.14349281]
[1769682243308,0.002,2948.2,2947.6,4.64814764]
[1769682243535,0.002,2948.2,2947.7,0.03392475]
[1769682245548,0.002,2948.2,2947.8,0.8480901]
[1769682249155,11.23938989,2948.5,2947.8,0.8480901]
[1769682250152,1e-08,2948.8,2948.1,11.14349281]
[1769682250457,1e-08,2948.8,2948.2,0.711]
[1769682250954,1e-08,2948.8,2948.3,0.711]
[1769682251324,11.2373899,2948.8,2948.3,0.711]
[1769682252154,11.2373899,2948.8,2948.4,0.84791751]
[1769682254456,0.002,2948.6,2948.4,0.84791751]
[1769682257155,0.002,2948.6,2948.3,4.10274506]
[1769682257456,0.002,2948.6,2948.4,0.84791751]
[1769682266261,0.002,2948.6,2948.3,4.10274506]
[1769682266468,0.002,2948.6,2948.4,0.84791751]
[1769682273077,0.002,2948.6,2948.2,0.84797503]
[1769682273243,0.002,2948.6,2948.3,0.71]
[1769682278452,0.002,2948.6,2948.3,3.82451533]
[1769682278652,0.002,2948.6,2948.4,0.84791751]
[1769682279962,0.002,2948.6,2948.4,0.71]
[1769682280653,0.002,2948.6,2948.4,1.55789738]
[1769682283493,1e-08,2948.8,2948.4,1.55789738]
[1769682284692,11.37995207,2949.0,2948.4,1.55789738]
[1769682285579,0.002,2949.0,2948.4,1.55789738]
[1769682287399,0.002,2949.0,2948.4,13.62147795]
[1769682290601,0.002,2948.8,2948.4,13.62147795]
[1769682292403,0.002,2948.8,2948.4,12.77358057]
[1769682292603,0.002,2948.8,2948.4,13.62147795]
[1769682293502,0.002,2948.8,2948.4,1.55789738]
[1769682293703,11.37995207,2948.8,2948.4,0.84789738]
[1769682293907,11.37995207,2948.8,2948.5,0.42980225]
[1769682294204,11.37995207,2948.8,2948.4,0.84789738]
[1769682302793,0.002,2948.8,2948.4,0.84789738]
[1769682306216,0.002,2948.8,2948.3,4.10176108]
[1769682306515,0.002,2948.8,2948.4,0.84789738]
[1769682306891,0.002,2948.8,2948.3,4.10176108]
[1769682307301,0.002,2948.8,2948.3,3.82373671]
[1769682307615,0.002,2948.8,2948.4,0.84789738]
[1769682311216,0.002,2948.8,2948.2,15.01459377]
[1769682311217,11.21800804,2948.8,2948.2,0.84795865]
[1769682312016,11.21800804,2948.8,2947.9,3.39221892]
[1769682312320,11.21600804,2948.6,2948.1,0.84799658]
[1769682312714,11.21600804,2948.6,2947.7,0.84811887]
[1769682313500,12.06386819,2948.6,2947.7,0.84811887]
[1769682314893,12.06386819,2948.6,2948.3,0.001]
[1769682315095,12.06586819,2948.6,2947.3,15.01584054]
[1769682315307,12.06586819,2948.6,2947.4,0.84820519]
[1769682316133,0.03395024,2948.5,2947.4,0.84820519]
[1769682316313,11.21600804,2948.4,2947.4,0.84820519]
[1769682318338,12.06393015,2948.4,2947.4,0.84820519]
[1769682319015,11.21600804,2948.4,2947.4,0.84820519]
[1769682319650,11.21600804,2948.2,2947.4,0.84820519]
[1769682320350,11.21600804,2948.2,2947.3,15.01584054]
[1769682320555,11.21600804,2948.5,2947.4,11.62292372]
[1769682320754,11.24995828,2948.4,2947.4,11.62292372]
[1769682320942,11.21600804,2948.4,2947.4,11.62292372]
[1769682321142,0.03395024,2948.3,2947.4,11.62292372]
[1769682321442,11.24995828,2948.3,2947.3,3.39291682]
[1769682321647,11.21600804,2948.3,2947.3,3.39291682]
[1769682321823,11.21600804,2948.3,2947.3,15.01584054]
[1769682322017,11.21600804,2948.3,2947.3,14.7386509]
[1769682322222,11.21600804,2948.3,2947.3,14.18838459]
[1769682322542,11.21600804,2948.3,2947.3,14.18419978]
[1769682325136,11.21600804,2948.3,2947.3,14.89419978]
[1769682325453,11.21600804,2948.3,2947.4,12.05414158]
[1769682326019,12.21805542,2948.6,2947.4,12.05414158]
[1769682326230,11.40214427,2948.5,2947.4,12.05414158]
[1769682326435,11.36819403,2948.5,2947.4,12.05414158]
[1769682326635,0.03395024,2948.4,2947.5,12.902318]
[1769682326848,0.002,2948.1,2947.5,12.902318]
[1769682340425,0.002,2947.9,2947.5,12.902318]
[1769682343524,11.48494666,2947.9,2947.2,0.001]
[1769682343818,0.002,2947.9,2947.5,0.84817248]
[1769682346007,0.002,2947.9,2947.3,0.84823397]
[1769682346182,0.002,2947.9,2947.3,5.08911607]
[1769682346687,0.002,2947.9,2947.3,17.18092841]
[1769682347930,11.48494666,2947.9,2947.3,5.08911607]
[1769682349091,11.48494666,2947.9,2947.3,5.0891142]
[1769682349412,11.48494666,2947.9,2947.3,3.90472272]
[1769682349884,11.48494666,2947.9,2947.3,3.60742325]
[1769682351638,0.03395024,2947.8,2947.2,0.84924849]
[1769682351827,11.48294666,2947.7,2947.2,0.84924754]
[1769682352232,11.48294666,2947.7,2947.2,3.60843869]
[1769682352411,11.48294666,2947.7,2947.2,0.001]
[1769682352616,12.33107925,2947.7,2946.8,0.711]
[1769682352818,12.33107925,2947.7,2946.9,0.84833009]
[1769682353214,12.33107925,2947.7,2947.0,2.75919115]
[1769682353411,12.33107925,2947.7,2947.0,2.2763417]
[1769682353625,12.33107925,2947.7,2947.0,1.28316015]
[1769682353832,12.33107925,2947.7,2947.0,0.98402093]
[1769682354034,12.33107925,2947.7,2947.0,0.6855084]
[1769682354232,12.33107925,2947.7,2947.0,0.38562589]
[1769682354498,11.48294666,2947.7,2947.0,0.93451893]
[1769682354801,0.03395024,2947.6,2947.0,0.93451893]
[1769682356204,12.43124499,2947.6,2947.0,0.93451893]
[1769682356404,12.39729475,2947.6,2947.0,0.93451893]
[1769682357020,12.39729475,2947.8,2947.0,0.93451893]
[1769682357245,0.03395024,2947.7,2947.0,0.93451893]
[1769682357450,12.43124499,2947.7,2947.0,0.84831456]
[1769682357665,12.39729475,2947.7,2946.9,0.84833247]
[1769682357846,12.39729475,2947.5,2946.9,0.84833247]
[1769682358168,12.39729475,2947.5,2947.0,0.84831534]
[1769682358344,12.39729475,2947.5,2946.7,0.84840669]
[1769682360477,12.39729475,2947.8,2946.7,12.79275089]
[1769682360779,0.03395024,2947.7,2946.7,12.79275089]
[1769682360932,12.43124499,2947.7,2946.7,12.79275089]
[1769682361273,12.39729475,2947.7,2946.7,12.79275089]
[1769682361428,0.03395024,2947.6,2946.7,12.79275089]
[1769682361963,12.43124499,2947.6,2946.7,12.79275089]
[1769682362161,12.39729475,2947.6,2946.7,12.79275089]
[1769682363869,0.03395024,2947.5,2946.7,12.79275089]
[1769682364469,12.43124499,2947.5,2946.7,12.79275089]
[1769682364672,12.39729475,2947.5,2946.7,12.79275089]
[1769682364882,0.85008087,2947.9,2946.9,0.001]
[1769682365035,12.39929475,2947.7,2946.9,0.001]
[1769682365239,0.03395024,2947.6,2946.9,0.001]
[1769682366174,0.002,2947.7,2946.9,11.97927816]
[1769682366351,12.39929475,2947.7,2946.9,0.001]
[1769682366552,12.39729475,2947.5,2946.9,0.001]
[1769682373260,12.39729475,2947.5,2946.6,17.06718857]
[1769682373468,12.39729475,2947.5,2946.7,0.84840669]
[1769682374702,12.39729475,2947.5,2946.7,12.79275089]
[1769682376329,12.39929475,2947.7,2946.7,12.79275089]
[1769682376502,0.03395024,2947.6,2946.7,12.79275089]
[1769682377720,0.03395024,2947.6,2946.9,0.001]
[1769682378216,0.002,2947.5,2946.9,0.001]
[1769682378783,12.39729475,2947.4,2946.9,0.001]
[1769682379013,0.03395024,2947.3,2946.9,0.001]
[1769682379213,12.39729475,2947.4,2946.9,0.001]
[1769682380409,0.002,2947.5,2946.9,0.001]
[1769682382691,0.03595024,2947.5,2946.9,0.001]
[1769682384194,0.002,2947.5,2946.9,0.001]
[1769682388835,0.03595024,2947.5,2946.9,0.001]
[1769682389331,0.002,2947.5,2946.9,12.78120848]
[1769682389697,0.002,2947.5,2947.0,12.78020848]
[1769682390108,0.002,2947.5,2947.1,0.84829154]
[1769682391135,0.002,2947.3,2947.1,0.84829154]
[1769682392244,12.057199,2947.7,2947.1,0.84829154]
[1769682392965,12.08914924,2947.6,2947.1,0.84829154]
[1769682393264,12.055199,2947.6,2947.1,0.84829154]
[1769682395153,12.055199,2947.6,2946.9,0.84934911]
[1769682401367,12.055199,2947.6,2946.9,0.001]
[1769682404278,12.055199,2947.6,2947.1,0.001]
[1769682404441,12.055199,2947.6,2946.9,0.001]
[1769682406573,0.002,2947.7,2946.9,0.001]
[1769682406780,12.09114924,2947.7,2946.9,0.001]
[1769682406979,12.057199,2947.7,2946.9,0.001]
[1769682407144,0.03395024,2947.6,2946.9,0.001]
[1769682408680,0.03395024,2947.6,2946.9,0.84934911]
[1769682415793,0.03395024,2947.6,2947.1,0.001]
[1769682416158,0.002,2947.4,2947.1,0.001]
[1769682420284,0.002,2947.4,2947.1,11.92607009]
[1769682420485,0.002,2947.6,2947.1,11.92607009]
[1769682420694,0.002,2947.6,2947.2,0.84826275]
[1769682421094,0.002,2947.6,2947.1,15.31912112]
[1769682421280,0.002,2947.6,2947.2,0.84826275]
[1769682426414,0.002,2947.6,2947.1,0.001]
[1769682428219,0.002,2947.6,2947.1,0.84929154]
[1769682428408,0.002,2947.4,2947.1,0.84929154]
[1769682431317,0.002,2947.6,2947.1,11.92607009]
[1769682432598,0.002,2947.6,2947.1,0.001]
[1769682433041,0.002,2947.6,2947.1,11.92607009]
[1769682433337,0.002,2947.6,2947.2,0.84826275]
[1769682434447,0.002,2947.6,2947.1,3.39405103]
[1769682434834,0.002,2947.6,2947.2,0.84826275]
[1769682435429,12.1740216,2947.6,2947.1,0.001]
[1769682435636,12.14007136,2947.6,2947.1,0.001]
[1769682435955,12.1720216,2947.5,2947.1,0.001]
[1769682436140,12.13807136,2947.5,2947.1,0.001]
[1769682436336,12.1720216,2947.4,2947.1,0.001]
[1769682436643,12.13807136,2947.4,2947.1,0.001]
[1769682437012,12.13807136,2947.4,2946.9,0.001]
[1769682438213,12.13807136,2947.4,2946.5,0.84846427]
[1769682439848,12.13807136,2947.4,2946.5,12.77353436]
[1769682440516,0.002,2947.4,2946.5,12.77353436]
[1769682441648,0.002,2947.4,2946.5,0.84846427]
[1769682441649,12.14007136,2947.4,2946.5,0.84846427]
[1769682442218,12.14007136,2947.4,2946.5,12.77353436]
[1769682444244,12.14007136,2947.4,2946.5,0.84846427]
[1769682444450,12.13807136,2947.2,2946.5,0.84846427]
[1769682445047,12.13807136,2947.2,2945.9,12.18884146]
[1769682445250,12.13807136,2947.2,2946.3,0.84850911]
[1769682445449,12.13807136,2947.2,2945.9,12.18884146]
[1769682445450,12.13807136,2947.2,2946.0,3.39434555]
[1769682445646,12.13807136,2947.2,2946.1,0.84855967]
[1769682445859,12.44819789,2947.0,2946.0,0.848607]
[1769682447262,12.44819789,2946.8,2946.0,0.848607]
[1769682448065,12.44819789,2946.8,2945.5,0.002]
[1769682448237,12.44819789,2946.8,2945.5,0.85073862]
[1769682449570,12.44819789,2946.6,2945.5,0.85073862]
[1769682449733,12.44819789,2946.6,2945.5,0.002]
[1769682451064,0.03395024,2946.5,2945.5,0.002]
[1769682451266,11.87656449,2946.4,2945.5,0.002]
[1769682451760,12.72508636,2946.3,2945.4,10.54823015]
[1769682451935,12.72508636,2946.3,2945.4,9.54581264]
[1769682452138,12.72508636,2946.3,2946.2,0.001]
[1769682452460,12.72508636,2946.3,2945.4,8.30446795]
[1769682453438,11.87656449,2946.3,2945.4,8.30446795]
[1769682454060,12.72509097,2946.3,2945.4,8.30446795]
[1769682454652,0.03395024,2946.2,2945.4,8.30446795]
[1769682455641,0.03395024,2946.2,2945.4,7.72735269]
[1769682459482,11.87656449,2946.5,2945.4,7.72735269]
[1769682459676,0.03395024,2946.4,2945.4,7.72735269]
[1769682461246,0.03395024,2946.5,2945.4,7.72735269]
[1769682464079,0.001,2946.3,2945.4,7.72735269]
[1769682466184,11.87656449,2946.2,2945.4,0.84876103]
[1769682466393,0.03395024,2946.1,2945.4,0.84876103]
[1769682467684,0.03395024,2946.1,2945.4,13.86622516]
[1769682469755,0.03395024,2946.1,2945.3,0.002]
[1769682470055,0.03395024,2946.1,2945.3,13.01946413]
[1769682470470,0.001,2946.3,2945.3,13.01946413]
[1769682472284,0.03495024,2946.3,2945.4,13.86624528]
[1769682473354,0.001,2946.3,2945.4,13.86624528]
[1769682475676,0.001,2946.1,2945.4,13.86624528]
[1769682483593,0.001,2946.1,2945.8,8.24855929]
[1769682484886,0.001,2946.1,2945.9,0.84863708]
[1769682485073,0.001,2946.1,2945.8,8.24855929]
[1769682485566,12.42883489,2946.9,2945.9,13.87983062]
[1769682485792,12.42883489,2946.9,2946.4,8.24855929]
[1769682485998,12.42883489,2946.9,2946.0,13.74219354]
[1769682485999,0.03395024,2946.8,2946.0,0.711]
[1769682486161,12.42883489,2946.7,2946.0,0.711]
[1769682486981,12.42883489,2946.7,2946.1,0.84857947]
[1769682487992,12.42883489,2946.9,2946.2,8.24855929]
[1769682488172,0.03395024,2946.8,2946.2,8.24855929]
[1769682490795,12.42883489,2946.9,2946.3,0.84852187]
[1769682493681,12.42883489,2947.1,2946.3,0.84852187]
[1769682494010,0.03395024,2947.0,2946.5,8.24855929]
[1769682494507,12.46278513,2947.0,2946.5,8.24855929]
[1769682494713,12.42883489,2947.0,2946.3,0.84852187]
[1769682500230,0.001,2946.8,2946.3,0.84852187]
[1769682500722,0.002,2947.2,2946.6,13.03119354]
[1769682500896,13.27899573,2947.6,2946.8,8.24855929]
[1769682500897,0.03595024,2947.4,2946.8,8.24855929]
[1769682501623,0.03595024,2947.4,2946.7,8.24322602]
[1769682501809,12.42883489,2947.5,2947.0,8.24322602]
[1769682502015,0.002,2947.6,2947.0,8.24322602]
[1769682502594,12.43083489,2947.6,2947.0,9.09153981]
[1769682503798,12.43083489,2947.6,2947.0,8.24322602]
[1769682505242,12.43083489,2947.6,2947.0,9.09154355]